[Event "Titled Tuesday Blitz April 4 Early 2023"]
[White "Munoz, Francisco Javier"]
[Black "Estremera Panos, Sergio"]
[WhiteFideId "128368"]
[BlackFideId "2200864"]
[WhiteElo "2383"]
[BlackElo "2253"]
[Result "1-0"]
[Round "01"]
[TimeControl "180+2"]
[Date "2023.04.04"]
[WhiteClock "0:00:38"]
[BlackClock "0:00:39"]

1. e4 {[%clk 0:02:56]}  c5 {[%clk 0:02:59]} 2. Nc3 {[%clk 0:02:57]}  g6 {[%clk 0:02:55]} 3. f4 {[%clk 0:02:58]}  Nc6 {[%clk 0:02:55]} 4. Nf3 {[%clk 0:02:57]}  Bg7 {[%clk 0:02:56]} 5. Bb5 {[%clk 0:02:57]}  Nd4 {[%clk 0:02:50]} 6. Nxd4 {[%clk 0:02:58]}  cxd4 {[%clk 0:02:51]} 7. Ne2 {[%clk 0:02:58]}  e6 {[%clk 0:02:49]} 8. O-O {[%clk 0:02:56]}  a6 {[%clk 0:02:49]} 9. Ba4 {[%clk 0:02:56]}  Ne7 {[%clk 0:02:50]} 10. Bb3 {[%clk 0:02:56]}  b5 {[%clk 0:02:48]} 11. d3 {[%clk 0:02:57]}  Bb7 {[%clk 0:02:48]} 12. a4 {[%clk 0:02:56]}  O-O {[%clk 0:02:46]} 13. Ng3 {[%clk 0:02:56]}  d5 {[%clk 0:02:45]} 14. e5 {[%clk 0:02:55]}  Qd7 {[%clk 0:02:35]} 15. Bd2 {[%clk 0:02:55]}  Rfc8 {[%clk 0:02:31]} 16. h4 {[%clk 0:02:53]}  h5 {[%clk 0:02:31]} 17. Kh2 {[%clk 0:02:36]}  Bf8 {[%clk 0:02:23]} 18. Rg1 {[%clk 0:02:35]}  Bc6 {[%clk 0:02:16]} 19. axb5 {[%clk 0:02:33]}  axb5 {[%clk 0:02:17]} 20. Rxa8 {[%clk 0:02:33]}  Rxa8 {[%clk 0:02:18]} 21. Qf3 {[%clk 0:02:32]}  Qa7 {[%clk 0:02:04]} 22. Kh3 {[%clk 0:02:29]}  Be8 {[%clk 0:02:04]} 23. Ne2 {[%clk 0:02:29]}  Nf5 {[%clk 0:02:01]} 24. g4 {[%clk 0:02:25]}  hxg4+ {[%clk 0:02:01]} 25. Rxg4 {[%clk 0:02:25]}  Bg7 {[%clk 0:02:00]} 26. h5 {[%clk 0:02:01]}  Qa1 {[%clk 0:01:54]} 27. Bc1 {[%clk 0:01:50]}  Ne3 {[%clk 0:01:52]} 28. Rg1 {[%clk 0:01:48]}  Nf5 {[%clk 0:01:39]} 29. Ng3 {[%clk 0:01:38]}  Nxg3 {[%clk 0:01:37]} 30. Qxg3 {[%clk 0:01:39]}  Qa7 {[%clk 0:01:31]} 31. f5 {[%clk 0:01:16]}  exf5 {[%clk 0:01:31]} 32. hxg6 {[%clk 0:01:16]}  fxg6 {[%clk 0:01:27]} 33. Bxd5+ {[%clk 0:01:16]}  Kf8 {[%clk 0:01:27]} 34. Bg5 {[%clk 0:00:56]}  Rc8 {[%clk 0:00:59]} 35. e6 {[%clk 0:00:54]}  Rc7 {[%clk 0:00:54]} 36. e7+ {[%clk 0:00:48]}  Rxe7 {[%clk 0:00:54]} 37. Qd6 {[%clk 0:00:44]}  Bf7 {[%clk 0:00:46]} 38. Re1 {[%clk 0:00:39]}  Bxd5 {[%clk 0:00:39]} 39. Rxe7 {[%clk 0:00:38]} 1-0


[Site "https://www.chess.com"]

[Event "Titled Tuesday Blitz April 4 Early 2023"]
[White "Zampronha, Wladimir Camilo"]
[Black "Antal, Gergely"]
[WhiteFideId "2103087"]
[BlackFideId "717312"]
[WhiteElo "2176"]
[BlackElo "2471"]
[Result "0-1"]
[Round "01"]
[TimeControl "180+2"]
[Date "2023.04.04"]
[WhiteClock "0:00:02"]
[BlackClock "0:00:05"]

1. e4 {[%clk 0:03:00]}  c6 {[%clk 0:02:59]} 2. d4 {[%clk 0:02:59]}  d5 {[%clk 0:03:00]} 3. e5 {[%clk 0:02:59]}  c5 {[%clk 0:03:00]} 4. Nf3 {[%clk 0:03:00]}  Nc6 {[%clk 0:03:00]} 5. c4 {[%clk 0:02:59]}  Bg4 {[%clk 0:02:59]} 6. cxd5 {[%clk 0:02:57]}  Qxd5 {[%clk 0:02:57]} 7. Nc3 {[%clk 0:02:58]}  Bxf3 {[%clk 0:02:58]} 8. Nxd5 {[%clk 0:02:56]}  Bxd1 {[%clk 0:02:58]} 9. Nc7+ {[%clk 0:02:53]}  Kd7 {[%clk 0:02:59]} 10. Nxa8 {[%clk 0:02:54]}  Bc2 {[%clk 0:02:52]} 11. d5 {[%clk 0:02:49]}  Nxe5 {[%clk 0:02:52]} 12. Bf4 {[%clk 0:02:49]}  Ng6 {[%clk 0:02:48]} 13. Bg3 {[%clk 0:02:48]}  Be4 {[%clk 0:02:19]} 14. Nc7 {[%clk 0:02:35]}  a6 {[%clk 0:02:11]} 15. Rc1 {[%clk 0:02:20]}  Nf6 {[%clk 0:01:59]} 16. Rxc5 {[%clk 0:02:05]}  e5 {[%clk 0:01:50]} 17. dxe6+ {[%clk 0:02:06]}  fxe6 {[%clk 0:01:51]} 18. Rc4 {[%clk 0:01:57]}  e5 {[%clk 0:01:43]} 19. a3 {[%clk 0:01:38]}  Bc6 {[%clk 0:01:26]} 20. Na8 {[%clk 0:01:34]}  b5 {[%clk 0:01:21]} 21. Nb6+ {[%clk 0:01:24]}  Kc7 {[%clk 0:01:21]} 22. Rc1 {[%clk 0:01:00]}  Kxb6 {[%clk 0:01:21]} 23. f3 {[%clk 0:00:59]}  Nf4 {[%clk 0:01:13]} 24. Bf2+ {[%clk 0:00:58]}  Kb7 {[%clk 0:01:13]} 25. g3 {[%clk 0:00:58]}  Bxf3 {[%clk 0:01:00]} 26. gxf4 {[%clk 0:00:53]}  Bxh1 {[%clk 0:01:00]} 27. fxe5 {[%clk 0:00:54]}  Ne4 {[%clk 0:00:27]} 28. Be3 {[%clk 0:00:50]}  Be7 {[%clk 0:00:27]} 29. Bh3 {[%clk 0:00:50]}  Ng5 {[%clk 0:00:20]} 30. Bg4 {[%clk 0:00:44]}  Bd5 {[%clk 0:00:16]} 31. Kf2 {[%clk 0:00:38]}  Rf8+ {[%clk 0:00:15]} 32. Kg3 {[%clk 0:00:38]}  Ne6 {[%clk 0:00:13]} 33. Rd1 {[%clk 0:00:37]}  Kc6 {[%clk 0:00:13]} 34. Rc1+ {[%clk 0:00:33]}  Kb7 {[%clk 0:00:13]} 35. Rd1 {[%clk 0:00:34]}  Nc7 {[%clk 0:00:09]} 36. Bf4 {[%clk 0:00:26]}  g5 {[%clk 0:00:08]} 37. Be3 {[%clk 0:00:26]}  h6 {[%clk 0:00:09]} 38. b4 {[%clk 0:00:20]}  Rd8 {[%clk 0:00:06]} 39. Rf1 {[%clk 0:00:17]}  Bc4 {[%clk 0:00:06]} 40. Rc1 {[%clk 0:00:15]}  Nd5 {[%clk 0:00:05]} 41. Bf2 {[%clk 0:00:11]}  Kb8 {[%clk 0:00:06]} 42. Rd1 {[%clk 0:00:06]}  Nc7 {[%clk 0:00:06]} 43. Bf3 {[%clk 0:00:06]}  Re8 {[%clk 0:00:05]} 44. Bb6 {[%clk 0:00:03]}  Be6 {[%clk 0:00:05]} 45. Bg4 {[%clk 0:00:02]}  Bxg4 {[%clk 0:00:04]} 46. Kxg4 {[%clk 0:00:02]}  Kb7 {[%clk 0:00:05]} 0-1


[Site "https://www.chess.com"]

[Event "Titled Tuesday Blitz April 4 Early 2023"]
[White "Arat, Ufuk Sezen"]
[Black "Ozates, Tuna"]
[WhiteFideId "6309089"]
[BlackFideId "6354521"]
[WhiteElo "2289"]
[BlackElo "2151"]
[Result "0-1"]
[Round "01"]
[TimeControl "180+2"]
[Date "2023.04.04"]
[WhiteClock "0:00:21"]
[BlackClock "0:00:16"]

1. e4 {[%clk 0:03:00]}  c5 {[%clk 0:02:50]} 2. Nf3 {[%clk 0:03:00]}  Nc6 {[%clk 0:02:49]} 3. d4 {[%clk 0:03:01]}  cxd4 {[%clk 0:02:49]} 4. Nxd4 {[%clk 0:03:02]}  e5 {[%clk 0:02:50]} 5. Nb5 {[%clk 0:03:01]}  d6 {[%clk 0:02:48]} 6. c4 {[%clk 0:03:02]}  Be6 {[%clk 0:02:48]} 7. N1c3 {[%clk 0:03:01]}  a6 {[%clk 0:02:48]} 8. Na3 {[%clk 0:03:01]}  g6 {[%clk 0:02:48]} 9. Be3 {[%clk 0:03:01]}  Bg7 {[%clk 0:02:46]} 10. Nc2 {[%clk 0:02:55]}  Nge7 {[%clk 0:02:45]} 11. Qd2 {[%clk 0:02:53]}  O-O {[%clk 0:02:45]} 12. h4 {[%clk 0:02:49]}  f5 {[%clk 0:02:40]} 13. Bh6 {[%clk 0:02:43]}  f4 {[%clk 0:02:40]} 14. Bxg7 {[%clk 0:02:42]}  Kxg7 {[%clk 0:02:41]} 15. h5 {[%clk 0:02:41]}  Qb6 {[%clk 0:02:27]} 16. hxg6 {[%clk 0:02:35]}  hxg6 {[%clk 0:02:27]} 17. O-O-O {[%clk 0:02:11]}  Rad8 {[%clk 0:02:22]} 18. Nd5 {[%clk 0:01:59]}  Bxd5 {[%clk 0:02:18]} 19. cxd5 {[%clk 0:01:59]}  Nb8 {[%clk 0:02:09]} 20. Kb1 {[%clk 0:01:57]}  Nd7 {[%clk 0:02:08]} 21. g3 {[%clk 0:01:50]}  Rc8 {[%clk 0:02:08]} 22. gxf4 {[%clk 0:01:32]}  Rxf4 {[%clk 0:02:06]} 23. Ne3 {[%clk 0:01:32]}  Rcf8 {[%clk 0:01:59]} 24. f3 {[%clk 0:01:18]}  Rxf3 {[%clk 0:01:56]} 25. Ng4 {[%clk 0:01:13]}  R8f4 {[%clk 0:01:52]} 26. Qh2 {[%clk 0:01:03]}  Nf8 {[%clk 0:01:25]} 27. Qh8+ {[%clk 0:00:46]}  Kf7 {[%clk 0:01:25]} 28. Be2 {[%clk 0:00:46]}  Rg3 {[%clk 0:01:19]} 29. Rdf1 {[%clk 0:00:35]}  Rg2 {[%clk 0:01:11]} 30. Rxf4+ {[%clk 0:00:34]}  exf4 {[%clk 0:01:09]} 31. e5 {[%clk 0:00:26]}  Rg1+ {[%clk 0:00:34]} 32. Rxg1 {[%clk 0:00:25]}  Qxg1+ {[%clk 0:00:35]} 33. Kc2 {[%clk 0:00:25]}  Qc5+ {[%clk 0:00:35]} 34. Kb1 {[%clk 0:00:26]}  Qxd5 {[%clk 0:00:25]} 35. Qf6+ {[%clk 0:00:25]}  Ke8 {[%clk 0:00:25]} 36. Qxd6 {[%clk 0:00:19]}  Qxd6 {[%clk 0:00:18]} 37. exd6 {[%clk 0:00:20]}  Nf5 {[%clk 0:00:18]} 38. Bd3 {[%clk 0:00:20]}  Nxd6 {[%clk 0:00:17]} 39. Kc2 {[%clk 0:00:21]}  Ke7 {[%clk 0:00:16]} 40. Kd2 {[%clk 0:00:21]}  Ke6 {[%clk 0:00:17]} 41. Ke2 {[%clk 0:00:22]}  Kd5 {[%clk 0:00:16]} 42. Kf3 {[%clk 0:00:22]}  g5 {[%clk 0:00:16]} 43. Nf6+ {[%clk 0:00:22]}  Ke6 {[%clk 0:00:15]} 44. Ng4 {[%clk 0:00:22]}  Nd7 {[%clk 0:00:14]} 45. Bc2 {[%clk 0:00:22]}  Ne5+ {[%clk 0:00:15]} 46. Nxe5 {[%clk 0:00:23]}  Kxe5 {[%clk 0:00:16]} 47. Kg4 {[%clk 0:00:23]}  Kf6 {[%clk 0:00:16]} 48. Bd1 {[%clk 0:00:23]}  Nc4 {[%clk 0:00:16]} 49. Bf3 {[%clk 0:00:21]}  Ne5+ {[%clk 0:00:16]} 0-1


[Site "https://www.chess.com"]

[Event "Titled Tuesday Blitz April 4 Early 2023"]
[White "Jakubowski, Krzysztof"]
[Black "Idnani, Roshan"]
[WhiteFideId "1112848"]
[BlackFideId "2072939"]
[WhiteElo "2359"]
[BlackElo "2306"]
[Result "1-0"]
[Round "01"]
[TimeControl "180+2"]
[Date "2023.04.04"]
[WhiteClock "0:00:32"]
[BlackClock "0:00:44"]

1. e4 {[%clk 0:02:59]}  c5 {[%clk 0:02:59]} 2. Nf3 {[%clk 0:02:58]}  d6 {[%clk 0:03:00]} 3. d4 {[%clk 0:02:58]}  cxd4 {[%clk 0:03:01]} 4. Nxd4 {[%clk 0:02:58]}  Nf6 {[%clk 0:03:01]} 5. Nc3 {[%clk 0:02:58]}  a6 {[%clk 0:03:02]} 6. Be3 {[%clk 0:02:57]}  e5 {[%clk 0:03:01]} 7. Nb3 {[%clk 0:02:57]}  Be6 {[%clk 0:03:01]} 8. h3 {[%clk 0:02:57]}  Be7 {[%clk 0:03:00]} 9. Qf3 {[%clk 0:02:56]}  O-O {[%clk 0:02:59]} 10. O-O-O {[%clk 0:02:56]}  b5 {[%clk 0:02:58]} 11. g4 {[%clk 0:02:55]}  Nc6 {[%clk 0:02:56]} 12. g5 {[%clk 0:02:52]}  Nd7 {[%clk 0:02:55]} 13. Rg1 {[%clk 0:02:49]}  Nb6 {[%clk 0:02:52]} 14. Kb1 {[%clk 0:02:37]}  Nc4 {[%clk 0:02:48]} 15. Bc1 {[%clk 0:02:33]}  Qb6 {[%clk 0:02:40]} 16. h4 {[%clk 0:02:31]}  a5 {[%clk 0:02:40]} 17. Bh3 {[%clk 0:02:25]}  a4 {[%clk 0:02:32]} 18. Nd2 {[%clk 0:02:21]}  b4 {[%clk 0:02:24]} 19. Nd5 {[%clk 0:02:16]}  Bxd5 {[%clk 0:02:22]} 20. exd5 {[%clk 0:02:16]}  Nd4 {[%clk 0:02:22]} 21. Qd3 {[%clk 0:02:16]}  Nxd2+ {[%clk 0:02:19]} 22. Bxd2 {[%clk 0:02:12]}  b3 {[%clk 0:02:18]} 23. cxb3 {[%clk 0:02:09]}  axb3 {[%clk 0:02:18]} 24. a3 {[%clk 0:02:10]}  Qc5 {[%clk 0:02:02]} 25. Rc1 {[%clk 0:02:04]}  Qb6 {[%clk 0:01:55]} 26. f4 {[%clk 0:01:46]}  Qb5 {[%clk 0:01:35]} 27. Qxb5 {[%clk 0:01:40]}  Nxb5 {[%clk 0:01:35]} 28. f5 {[%clk 0:01:31]}  f6 {[%clk 0:01:29]} 29. Be3 {[%clk 0:01:21]}  Rfc8 {[%clk 0:01:27]} 30. Rc6 {[%clk 0:01:19]}  Rxc6 {[%clk 0:01:18]} 31. dxc6 {[%clk 0:01:19]}  d5 {[%clk 0:01:19]} 32. Rc1 {[%clk 0:01:06]}  d4 {[%clk 0:01:18]} 33. Bd2 {[%clk 0:01:06]}  Rc8 {[%clk 0:01:17]} 34. Bg2 {[%clk 0:01:03]}  Bd8 {[%clk 0:01:14]} 35. Bd5+ {[%clk 0:01:01]}  Kh8 {[%clk 0:01:11]} 36. Bxb3 {[%clk 0:00:59]}  e4 {[%clk 0:01:09]} 37. Be6 {[%clk 0:00:59]}  Ra8 {[%clk 0:01:03]} 38. Bf4 {[%clk 0:00:42]}  Ra7 {[%clk 0:00:56]} 39. Rc5 {[%clk 0:00:34]}  e3 {[%clk 0:00:44]} 40. Rxb5 {[%clk 0:00:32]} 1-0


[Site "https://www.chess.com"]

[Event "Titled Tuesday Blitz April 4 Early 2023"]
[White "Rose, Felix"]
[Black "Kozin, Yuri"]
[WhiteFideId "5105722"]
[BlackFideId "4129920"]
[WhiteElo "2039"]
[BlackElo "2600"]
[Result "0-1"]
[Round "01"]
[TimeControl "180+2"]
[Date "2023.04.04"]
[WhiteClock "0:00:09"]
[BlackClock "0:00:10"]

1. e4 {[%clk 0:02:58]}  c5 {[%clk 0:02:59]} 2. Nf3 {[%clk 0:02:59]}  e6 {[%clk 0:02:59]} 3. d4 {[%clk 0:02:59]}  cxd4 {[%clk 0:03:00]} 4. Nxd4 {[%clk 0:03:00]}  a6 {[%clk 0:03:00]} 5. Nc3 {[%clk 0:03:00]}  Qc7 {[%clk 0:03:00]} 6. Bd3 {[%clk 0:02:59]}  Nc6 {[%clk 0:03:00]} 7. Nxc6 {[%clk 0:02:59]}  dxc6 {[%clk 0:03:01]} 8. O-O {[%clk 0:03:00]}  e5 {[%clk 0:03:01]} 9. Kh1 {[%clk 0:03:00]}  Nf6 {[%clk 0:03:01]} 10. f4 {[%clk 0:03:00]}  Bd6 {[%clk 0:02:57]} 11. f5 {[%clk 0:02:48]}  h6 {[%clk 0:02:24]} 12. g4 {[%clk 0:02:44]}  b5 {[%clk 0:02:17]} 13. g5 {[%clk 0:02:41]}  hxg5 {[%clk 0:02:17]} 14. Bxg5 {[%clk 0:02:41]}  Be7 {[%clk 0:02:13]} 15. a4 {[%clk 0:02:40]}  Bb7 {[%clk 0:02:02]} 16. Qe2 {[%clk 0:02:31]}  b4 {[%clk 0:01:52]} 17. Nb1 {[%clk 0:02:24]}  c5 {[%clk 0:01:45]} 18. Bxf6 {[%clk 0:02:15]}  Bxf6 {[%clk 0:01:41]} 19. Nd2 {[%clk 0:02:16]}  Bg5 {[%clk 0:01:38]} 20. Nc4 {[%clk 0:02:14]}  Bf4 {[%clk 0:01:36]} 21. Rf2 {[%clk 0:02:12]}  O-O-O {[%clk 0:01:26]} 22. a5 {[%clk 0:02:09]}  Rh3 {[%clk 0:01:14]} 23. Rg1 {[%clk 0:01:53]}  Rdh8 {[%clk 0:01:12]} 24. Rgg2 {[%clk 0:01:52]}  Kb8 {[%clk 0:00:57]} 25. Nb6 {[%clk 0:01:50]}  Re3 {[%clk 0:00:46]} 26. Qg4 {[%clk 0:01:36]}  Re1+ {[%clk 0:00:39]} 27. Rg1 {[%clk 0:01:34]}  Rxe4 {[%clk 0:00:36]} 28. Bxe4 {[%clk 0:00:36]}  Bxe4+ {[%clk 0:00:36]} 29. Rgg2 {[%clk 0:00:34]}  Bxh2 {[%clk 0:00:19]} 30. Qxg7 {[%clk 0:00:30]}  Qd8 {[%clk 0:00:20]} 31. Rd2 {[%clk 0:00:13]}  Bf4+ {[%clk 0:00:16]} 32. Kg1 {[%clk 0:00:13]}  Bxd2 {[%clk 0:00:11]} 33. Rxd2 {[%clk 0:00:14]}  Rh1+ {[%clk 0:00:10]} 34. Kf2 {[%clk 0:00:09]}  Qxd2+ {[%clk 0:00:10]} 0-1


[Site "https://www.chess.com"]

[Event "Titled Tuesday Blitz April 4 Early 2023"]
[White "Danielyan, Vahe"]
[Black "Fuzesabonyilaci"]
[WhiteFideId "13304828"]
[WhiteElo "2423"]
[BlackElo "2300"]
[Result "1-0"]
[Round "01"]
[TimeControl "180+2"]
[Date "2023.04.04"]
[WhiteClock "0:02:00"]
[BlackClock "0:00:30"]

1. e4 {[%clk 0:03:00]}  c6 {[%clk 0:02:57]} 2. d4 {[%clk 0:02:59]}  g6 {[%clk 0:02:55]} 3. Nc3 {[%clk 0:02:58]}  Bg7 {[%clk 0:02:54]} 4. Be3 {[%clk 0:02:59]}  d5 {[%clk 0:02:53]} 5. e5 {[%clk 0:02:57]}  h5 {[%clk 0:02:52]} 6. f4 {[%clk 0:02:55]}  Nh6 {[%clk 0:02:52]} 7. Nf3 {[%clk 0:02:56]}  Bg4 {[%clk 0:02:46]} 8. Be2 {[%clk 0:02:55]}  Qb6 {[%clk 0:02:39]} 9. Qd2 {[%clk 0:02:52]}  Nd7 {[%clk 0:02:38]} 10. O-O {[%clk 0:02:51]}  Bxf3 {[%clk 0:02:31]} 11. Bxf3 {[%clk 0:02:51]}  e6 {[%clk 0:02:31]} 12. a3 {[%clk 0:02:47]}  a5 {[%clk 0:02:21]} 13. h3 {[%clk 0:02:44]}  Nf5 {[%clk 0:02:16]} 14. Bf2 {[%clk 0:02:41]}  h4 {[%clk 0:02:13]} 15. Na4 {[%clk 0:02:33]}  Qb5 {[%clk 0:02:02]} 16. Be2 {[%clk 0:02:30]}  Qxa4 {[%clk 0:01:29]} 17. b3 {[%clk 0:02:29]}  Qxd4 {[%clk 0:01:23]} 18. Bxd4 {[%clk 0:02:28]}  Bf8 {[%clk 0:01:10]} 19. Bf2 {[%clk 0:02:25]}  Nc5 {[%clk 0:01:01]} 20. Bf3 {[%clk 0:02:22]}  Nd7 {[%clk 0:00:47]} 21. c4 {[%clk 0:02:21]}  Bh6 {[%clk 0:00:46]} 22. cxd5 {[%clk 0:02:12]}  cxd5 {[%clk 0:00:46]} 23. Rfe1 {[%clk 0:02:04]}  O-O {[%clk 0:00:45]} 24. Rac1 {[%clk 0:02:02]}  Nb8 {[%clk 0:00:38]} 25. Bg4 {[%clk 0:02:01]}  Ng3 {[%clk 0:00:30]} 26. Bxg3 {[%clk 0:01:59]}  hxg3 {[%clk 0:00:30]} 27. Qe3 {[%clk 0:02:00]}  Nc6 {[%clk 0:00:30]} 28. Qxg3 {[%clk 0:02:00]} 1-0


[Site "https://www.chess.com"]

[Event "Titled Tuesday Blitz April 4 Early 2023"]
[White "Kohler, Aran"]
[Black "Nikologorskiy, Konstantin"]
[WhiteFideId "1002856"]
[BlackFideId "24111708"]
[WhiteElo "2298"]
[BlackElo "2293"]
[Result "0-1"]
[Round "01"]
[TimeControl "180+2"]
[Date "2023.04.04"]
[WhiteClock "0:00:02"]
[BlackClock "0:00:05"]

1. d4 {[%clk 0:02:58]}  Nf6 {[%clk 0:02:59]} 2. Nf3 {[%clk 0:02:57]}  e6 {[%clk 0:02:57]} 3. Bg5 {[%clk 0:02:57]}  Be7 {[%clk 0:02:56]} 4. Nbd2 {[%clk 0:02:57]}  d5 {[%clk 0:02:54]} 5. e3 {[%clk 0:02:56]}  O-O {[%clk 0:02:54]} 6. Bd3 {[%clk 0:02:57]}  c5 {[%clk 0:02:51]} 7. c3 {[%clk 0:02:57]}  b6 {[%clk 0:02:49]} 8. Ne5 {[%clk 0:02:55]}  Bb7 {[%clk 0:02:49]} 9. f4 {[%clk 0:02:54]}  Nbd7 {[%clk 0:02:49]} 10. Qf3 {[%clk 0:02:43]}  Nxe5 {[%clk 0:02:37]} 11. fxe5 {[%clk 0:02:42]}  Nd7 {[%clk 0:02:36]} 12. Bxe7 {[%clk 0:02:34]}  Qxe7 {[%clk 0:02:37]} 13. Qh3 {[%clk 0:02:31]}  g6 {[%clk 0:02:31]} 14. O-O {[%clk 0:02:31]}  f6 {[%clk 0:02:21]} 15. exf6 {[%clk 0:02:31]}  Nxf6 {[%clk 0:02:22]} 16. Rae1 {[%clk 0:02:14]}  Ne4 {[%clk 0:02:17]} 17. Nxe4 {[%clk 0:02:11]}  dxe4 {[%clk 0:02:18]} 18. Bc4 {[%clk 0:01:58]}  Bd5 {[%clk 0:02:10]} 19. Bxd5 {[%clk 0:01:42]}  exd5 {[%clk 0:02:11]} 20. Rxf8+ {[%clk 0:01:40]}  Rxf8 {[%clk 0:02:09]} 21. Rf1 {[%clk 0:01:40]}  Rd8 {[%clk 0:01:43]} 22. Qh6 {[%clk 0:01:27]}  cxd4 {[%clk 0:01:29]} 23. cxd4 {[%clk 0:01:23]}  Rc8 {[%clk 0:01:30]} 24. Qf4 {[%clk 0:01:16]}  Kg7 {[%clk 0:01:25]} 25. h4 {[%clk 0:01:15]}  h5 {[%clk 0:01:21]} 26. Rf2 {[%clk 0:01:10]}  Rc1+ {[%clk 0:01:13]} 27. Kh2 {[%clk 0:01:11]}  a5 {[%clk 0:01:14]} 28. a3 {[%clk 0:01:10]}  Rc6 {[%clk 0:01:10]} 29. Qg5 {[%clk 0:00:54]}  Qxg5 {[%clk 0:00:50]} 30. hxg5 {[%clk 0:00:54]}  b5 {[%clk 0:00:50]} 31. Kg3 {[%clk 0:00:50]}  b4 {[%clk 0:00:44]} 32. axb4 {[%clk 0:00:50]}  axb4 {[%clk 0:00:44]} 33. Kf4 {[%clk 0:00:48]}  b3 {[%clk 0:00:39]} 34. Ke5 {[%clk 0:00:47]}  Rc2 {[%clk 0:00:39]} 35. Rf6 {[%clk 0:00:42]}  Rxg2 {[%clk 0:00:39]} 36. Kxd5 {[%clk 0:00:39]}  Rxg5+ {[%clk 0:00:37]} 37. Ke6 {[%clk 0:00:38]}  h4 {[%clk 0:00:25]} 38. Rf7+ {[%clk 0:00:37]}  Kg8 {[%clk 0:00:24]} 39. Rc7 {[%clk 0:00:26]}  h3 {[%clk 0:00:16]} 40. Rc1 {[%clk 0:00:19]}  h2 {[%clk 0:00:16]} 41. Rh1 {[%clk 0:00:18]}  Rh5 {[%clk 0:00:14]} 42. d5 {[%clk 0:00:18]}  Kf8 {[%clk 0:00:14]} 43. d6 {[%clk 0:00:18]}  Ke8 {[%clk 0:00:13]} 44. d7+ {[%clk 0:00:16]}  Kd8 {[%clk 0:00:14]} 45. Ra1 {[%clk 0:00:15]}  Re5+ {[%clk 0:00:14]} 46. Kd6 {[%clk 0:00:14]}  Rd5+ {[%clk 0:00:04]} 47. Ke6 {[%clk 0:00:10]}  Rxd7 {[%clk 0:00:04]} 48. Ra8+ {[%clk 0:00:08]}  Kc7 {[%clk 0:00:04]} 49. Rh8 {[%clk 0:00:03]}  Rd2 {[%clk 0:00:04]} 50. Ke5 {[%clk 0:00:03]}  Rxb2 {[%clk 0:00:04]} 51. Kxe4 {[%clk 0:00:04]}  Rg2 {[%clk 0:00:05]} 52. Rh7+ {[%clk 0:00:02]}  Kc6 {[%clk 0:00:05]} 0-1


[Site "https://www.chess.com"]

[Event "Titled Tuesday Blitz April 4 Early 2023"]
[White "Ambartsumova, Karina"]
[Black "Gerasimenyuk, Mikhail"]
[WhiteFideId "4166299"]
[BlackFideId "14111845"]
[WhiteElo "2240"]
[BlackElo "2182"]
[Result "1-0"]
[Round "01"]
[TimeControl "180+2"]
[Date "2023.04.04"]
[WhiteClock "0:00:09"]
[BlackClock "0:00:46"]

1. e4 {[%clk 0:02:59]}  d5 {[%clk 0:02:58]} 2. exd5 {[%clk 0:02:58]}  Qxd5 {[%clk 0:02:59]} 3. Nc3 {[%clk 0:02:59]}  Qa5 {[%clk 0:02:59]} 4. d4 {[%clk 0:02:59]}  Nf6 {[%clk 0:03:00]} 5. Bc4 {[%clk 0:02:59]}  Nc6 {[%clk 0:02:59]} 6. Ne2 {[%clk 0:02:31]}  Bg4 {[%clk 0:02:59]} 7. f3 {[%clk 0:02:31]}  Bh5 {[%clk 0:02:59]} 8. Bd2 {[%clk 0:02:22]}  O-O-O {[%clk 0:02:58]} 9. Nd5 {[%clk 0:02:03]}  Qa4 {[%clk 0:02:56]} 10. Bb3 {[%clk 0:01:53]}  Qa6 {[%clk 0:02:54]} 11. Nxf6 {[%clk 0:01:45]}  gxf6 {[%clk 0:02:55]} 12. c3 {[%clk 0:01:38]}  e5 {[%clk 0:02:54]} 13. d5 {[%clk 0:01:30]}  Ne7 {[%clk 0:02:42]} 14. c4 {[%clk 0:01:27]}  Qb6 {[%clk 0:02:35]} 15. Ng3 {[%clk 0:01:18]}  Bg6 {[%clk 0:02:32]} 16. Qe2 {[%clk 0:01:17]}  Nf5 {[%clk 0:02:32]} 17. Nxf5 {[%clk 0:01:17]}  Bxf5 {[%clk 0:02:33]} 18. O-O-O {[%clk 0:01:11]}  Bc5 {[%clk 0:02:24]} 19. Bc2 {[%clk 0:01:00]}  Bd4 {[%clk 0:02:21]} 20. Bxf5+ {[%clk 0:00:58]}  Kb8 {[%clk 0:02:21]} 21. Bc3 {[%clk 0:00:54]}  Bxc3 {[%clk 0:02:20]} 22. bxc3 {[%clk 0:00:55]}  Qa5 {[%clk 0:02:17]} 23. Qc2 {[%clk 0:00:53]}  h5 {[%clk 0:02:15]} 24. Kb1 {[%clk 0:00:49]}  Rd6 {[%clk 0:02:14]} 25. Ka1 {[%clk 0:00:49]}  Ra6 {[%clk 0:02:14]} 26. Rb1 {[%clk 0:00:48]}  Qc5 {[%clk 0:02:12]} 27. Rb4 {[%clk 0:00:46]}  Rg8 {[%clk 0:02:06]} 28. Rhb1 {[%clk 0:00:44]}  b6 {[%clk 0:02:05]} 29. g3 {[%clk 0:00:45]}  Qe3 {[%clk 0:02:01]} 30. Be4 {[%clk 0:00:41]}  h4 {[%clk 0:02:00]} 31. g4 {[%clk 0:00:41]}  h3 {[%clk 0:02:00]} 32. Rb5 {[%clk 0:00:40]}  Ra3 {[%clk 0:01:59]} 33. R5b3 {[%clk 0:00:39]}  Ra5 {[%clk 0:01:58]} 34. Qd3 {[%clk 0:00:36]}  Qc5 {[%clk 0:01:55]} 35. d6 {[%clk 0:00:32]}  Qxd6 {[%clk 0:01:52]} 36. Qxd6 {[%clk 0:00:33]}  cxd6 {[%clk 0:01:53]} 37. Rd1 {[%clk 0:00:33]}  Kc7 {[%clk 0:01:53]} 38. Rb2 {[%clk 0:00:32]}  Ra3 {[%clk 0:01:51]} 39. Rb3 {[%clk 0:00:27]}  Ra5 {[%clk 0:01:51]} 40. Bd5 {[%clk 0:00:27]}  Rf8 {[%clk 0:01:43]} 41. Rb2 {[%clk 0:00:27]}  Kd7 {[%clk 0:01:40]} 42. Rbd2 {[%clk 0:00:26]}  Ke7 {[%clk 0:01:41]} 43. Kb2 {[%clk 0:00:25]}  b5 {[%clk 0:01:38]} 44. cxb5 {[%clk 0:00:20]}  Rxb5+ {[%clk 0:01:39]} 45. Bb3 {[%clk 0:00:21]}  Rd8 {[%clk 0:01:36]} 46. c4 {[%clk 0:00:21]}  Rb6 {[%clk 0:01:35]} 47. Kc3 {[%clk 0:00:22]}  Rc8 {[%clk 0:01:35]} 48. Rd5 {[%clk 0:00:21]}  f5 {[%clk 0:01:34]} 49. gxf5 {[%clk 0:00:21]}  Rg8 {[%clk 0:01:33]} 50. R5d2 {[%clk 0:00:20]}  a5 {[%clk 0:01:28]} 51. Bc2 {[%clk 0:00:17]}  Rc6 {[%clk 0:01:26]} 52. Be4 {[%clk 0:00:17]}  Rb6 {[%clk 0:01:26]} 53. Bd5 {[%clk 0:00:15]}  Kf6 {[%clk 0:01:25]} 54. Be4 {[%clk 0:00:12]}  Ke7 {[%clk 0:01:25]} 55. Kd3 {[%clk 0:00:09]}  a4 {[%clk 0:01:25]} 56. Ke3 {[%clk 0:00:08]}  a3 {[%clk 0:01:25]} 57. Rd3 {[%clk 0:00:08]}  Rg2 {[%clk 0:01:24]} 58. Rxa3 {[%clk 0:00:08]}  Rxh2 {[%clk 0:01:24]} 59. Ra7+ {[%clk 0:00:08]}  Kf6 {[%clk 0:01:23]} 60. c5 {[%clk 0:00:08]}  dxc5 {[%clk 0:01:21]} 61. Rdd7 {[%clk 0:00:09]}  Rg2 {[%clk 0:00:48]} 62. Rxf7+ {[%clk 0:00:10]}  Kg5 {[%clk 0:00:48]} 63. Rg7+ {[%clk 0:00:10]}  Kh4 {[%clk 0:00:48]} 64. Rh7+ {[%clk 0:00:09]}  Kg3 {[%clk 0:00:48]} 65. Rag7+ {[%clk 0:00:09]}  Kh2 {[%clk 0:00:49]} 66. Rxg2+ {[%clk 0:00:08]}  Kxg2 {[%clk 0:00:49]} 67. f4+ {[%clk 0:00:09]}  Kg3 {[%clk 0:00:49]} 68. fxe5 {[%clk 0:00:09]}  Ra6 {[%clk 0:00:46]} 69. f6 {[%clk 0:00:09]}  Ra3+ {[%clk 0:00:45]} 70. Kd2 {[%clk 0:00:09]}  Rxa2+ {[%clk 0:00:46]} 71. Kc3 {[%clk 0:00:10]}  Kf4 {[%clk 0:00:46]} 72. Bd5 {[%clk 0:00:09]}  Kxe5 {[%clk 0:00:46]} 73. Bxa2 {[%clk 0:00:09]} 1-0


[Site "https://www.chess.com"]